Workbook

Sheet ORÇAMENTO
A1: <---- NUMERAR SERVIÇOS PARA CPU | C1: Ministério do Desenvolvimento Regional
C2: Companhia de Desenvolvimento dos Vales do São Francisco e do Parnaíba
C3: 1ª Superintendência Regional
B5: OBRA: | C5: PAVIMENTAÇÃO ASFÁLTICA EM CBUQ – DIVERSOS LOGRADOUROS - ITEM 01 - (MORADA NOVA DE MINAS / MG)
B6: DATA: | C6: AGOSTO / 2023 | G6: BDI Serviços: | I6: ='BDI SERV'!D31/100 -> 0.2222
B7: PRAZO DE EXECUÇÃO: 180 DIAS | G7: BDI Serviços: | I7: ='BDI FORN'!D31/100 -> 0.15
B8: ITEM | C8: DISCRIMINAÇÃO | D8: REFER. | E8: UNID. | F8: QUANT. | G8: P. UNITÁRIO | H8: P.UNIT.C/ BDI | I8: P. TOTAL
A9: A | B9: 1 | C9: SERVIÇOS PRELIMINARES | I9: =SUM(I10:I14) -> 122348.95
A10: 1 | B10: 1.1 | C10: MOBILIZAÇÃO E DESMOBILIZAÇÃO | D10: CPU.1 | E10: GL | F10: 1 | G10: =VLOOKUP(A10,CPU!$A$1:$N$4628,9) -> 11856.48 | H10: =VLOOKUP(A10,CPU!$A$1:$N$4628,10) -> 14490.99 | I10: =ROUND(F10*H10,2) -> 14490.99
A11: 2 | B11: 1.2 | C11: ADMINISTRAÇÃO LOCAL | D11: CPU.2 | E11: GL | F11: 1 | G11: =VLOOKUP(A11,CPU!$A$1:$N$4628,9) -> 69890.52 | H11: =VLOOKUP(A11,CPU!$A$1:$N$4628,10) -> 85420.19 | I11: =ROUND(F11*H11,2) -> 85420.19
A12: 3 | B12: 1.3 | C12: CANTEIRO DE OBRAS | D12: CPU.3 | E12: GL | F12: 1 | G12: =VLOOKUP(A12,CPU!$A$1:$N$4628,9) -> 14356.5 | H12: =VLOOKUP(A12,CPU!$A$1:$N$4628,10) -> 17546.51 | I12: =ROUND(F12*H12,2) -> 17546.51
A13: 4 | B13: 1.4 | C13: PLACA DE OBRA EM CHAPA DE AÇO GALVANIZADO | D13: 103689 | E13: M2 | F13: 6 | G13: =VLOOKUP(A13,CPU!$A$1:$N$4628,9) -> 339.72 | H13: =VLOOKUP(A13,CPU!$A$1:$N$4628,10) -> 415.21 | I13: =ROUND(F13*H13,2) -> 2491.26
A14: 5 | B14: 1.5 | C14: SERVIÇOS TOPOGRÁFICOS PARA PAVIMENTAÇÃO, INCLUSIVE NOTA DE SERVIÇO, ACOMPANHAMENTO E GREIDE | D14: 78472 | E14: M2 | F14: 6000 | G14: =VLOOKUP(A14,CPU!$A$1:$N$4628,9) -> 0.33 | H14: =VLOOKUP(A14,CPU!$A$1:$N$4628,10) -> 0.4 | I14: =ROUND(F14*H14,2) -> 2400
A15: B | B15: 2 | C15: PAVIMENTAÇÃO | I15: =SUM(I16:I23) -> 204736.59
A16: 6 | B16: 2.1 | C16: ESCAVAÇÃO HORIZONTAL EM SOLO DE 1A CATEGORIA | D16: 101116 | E16: M3 | F16: 4450.003 | G16: =VLOOKUP(A16,CPU!$A$1:$N$4628,9) -> 2.03 | H16: =VLOOKUP(A16,CPU!$A$1:$N$4628,10) -> 2.48 | I16: =ROUND(F16*H16,2) -> 11036.01
A17: 7 | B17: 2.2 | C17: CARGA, MANOBRA E DESCARGA DE SOLOS E MATERIAIS GRANULARES EM CAMINHÃO BASCULANTE | D17: 100976 | E17: M3 | F17: 4450.003 | G17: =VLOOKUP(A17,CPU!$A$1:$N$4628,9) -> 7.99 | H17: =VLOOKUP(A17,CPU!$A$1:$N$4628,10) -> 9.77 | I17: 43476.53
A18: 8 | B18: 2.3 | C18: REGULARIZAÇÃO E COMPACTAÇÃO DO SUBLEITO | D18: 100577 | E18: M2 | F18: 14800 | G18: =VLOOKUP(A18,CPU!$A$1:$N$4628,9) -> 1.13 | H18: =VLOOKUP(A18,CPU!$A$1:$N$4628,10) -> 1.38 | I18: 20424
B19: 2.4 | C19: CASCALHO DE CAVA - EXCLUSIVE TRANSPORTE | D19: - | E19: M3 | F19: 2200.0015 | G19: FORNECIDO PELA PREFEITURA | I19: -
A20: 9 | B20: 2.5 | C20: EXECUÇÃO E COMPACTAÇÃO DE BASE E OU SUB BASE PARA PAVIMENTAÇÃO EM CASCALHO - EXCLUSIVE SOLO, ESCAVAÇÃO, CARGA E TRANSPORTE. | D20: 96388 | E20: M3 | F20: 2200.0015 | G20: =VLOOKUP(A20,CPU!$A$1:$N$4628,9) -> 12.99 | H20: =VLOOKUP(A20,CPU!$A$1:$N$4628,10) -> 15.88 | I20: 34936.02
A21: 10 | B21: 2.6 | C21: IMPRIMAÇÃO COM EMULSÃO ASFÁLTICA (EAI) | D21: 96401 | E21: M2 | F21: 14800 | G21: =VLOOKUP(A21,CPU!$A$1:$N$4628,9) -> 1.12 | H21: =VLOOKUP(A21,CPU!$A$1:$N$4628,10) -> 1.37 | I21: 20276
A22: 11 | B22: 2.7 | C22: PINTURA DE LIGAÇÃO COM EMULSÃO ASFÁLTICA RR-1C | D22: 96402 | E22: M2 | F22: 13399.996 | G22: =VLOOKUP(A22,CPU!$A$1:$N$4628,9) -> 0.93 | H22: =VLOOKUP(A22,CPU!$A$1:$N$4628,10) -> 1.14 | I22: 15276
A23: 12 | B23: 2.8 | C23: EXECUÇÃO DE PAVIMENTO COM APLICAÇÃO DE CONCRETO ASFÁLTICO USINADO A QUENTE (CBUQ), CAMADA DE ROLAMENTO - EXCLUSIVE TRANSPORTE | D23: 95995 | E23: M3 | F23: 400.00018 | G23: =VLOOKUP(A23,CPU!$A$1:$N$4628,9) -> 121.32 | H23: =VLOOKUP(A23,CPU!$A$1:$N$4628,10) -> 148.28 | I23: 59312.03
A24: C | B24: 3 | C24: TRANSPORTE DE MATERIAIS | I24: =SUM(I25:I26) -> 129975.01
A25: 13 | B25: 3.1 | C25: TRANSPORTE COM CAMINHÃO BASCULANTE, EM VIA URBANA PAVIMENTADA | D25: 95877 | E25: M3XKM | F25: 65500.0033 | G25: =VLOOKUP(A25,CPU!$A$1:$N$4628,9) -> 1.61 | H25: =VLOOKUP(A25,CPU!$A$1:$N$4628,10) -> 1.97 | I25: =ROUND(F25*H25,2) -> 129035.01
A26: 14 | B26: 3.2 | C26: TRANSPORTE COM CAMINHÃO CARROCERIA 9T, EM VIA URBANA PAVIMENTADA | D26: 100947 | E26: TXKM | F26: 400.0000083 | G26: =VLOOKUP(A26,CPU!$A$1:$N$4628,9) -> 1.92 | H26: =VLOOKUP(A26,CPU!$A$1:$N$4628,10) -> 2.35 | I26: =ROUND(F26*H26,2) -> 940
A27: D | B27: 4 | C27: TRANSPORTE DE MATERIAL ASFÁLTICO (BDI DIFERENCIADO) | I27: =SUM(I28:I29) -> 139050
A28: 15 | B28: 4.1 | C28: TRANSPORTE DE MASSA ASFÁLTICA COM CAMINHÃO BASCULANTE, EM VIA URBANA PAVIMENTADA (BDI DIFERENCIADO) | D28: 95427 | E28: TXKM | F28: 180000 | G28: =VLOOKUP(A28,CPU!$A$1:$N$4628,9) -> 0.65 | H28: =VLOOKUP(A28,CPU!$A$1:$N$4628,10) -> 0.75 | I28: =ROUND(F28*H28,2) -> 135000
A29: 16 | B29: 4.2 | C29: TRANSPORTE COM CAMINHÃO TANQUE DE TRANSPORTE DE MATERIAL ASFÁLTICO DE 30000 L, EM VIA URBANA PAVIMENTADA (BDI DIFERENCIADO) | D29: 102331 | E29: TXKM | F29: 7500 | G29: =VLOOKUP(A29,CPU!$A$1:$N$4628,9) -> 0.47 | H29: =VLOOKUP(A29,CPU!$A$1:$N$4628,10) -> 0.54 | I29: =ROUND(F29*H29,2) -> 4050
A30: E | B30: 5 | C30: OBRAS COMPLEMENTARES | I30: =SUM(I31:I32) -> 233682
A31: 17 | B31: 5.1 | C31: GUIA (MEIO-FIO) E SARJETA CONJUGADOS DE CONCRETO, MOLDADA IN LOCO EM TRECHO RETO COM EXTRUSORA, 45 CM BASE (15 CM BASE DA GUIA + SARJETA (30 X 0,05))X 22 CM ALTURA | D31: 94267a | E31: M | F31: 3400 | G31: =VLOOKUP(A31,CPU!$A$1:$N$4628,9) -> 47.91 | H31: =VLOOKUP(A31,CPU!$A$1:$N$4628,10) -> 58.56 | I31: =ROUND(F31*H31,2) -> 199104
A32: 18 | B32: 5.2 | C32: PINTURA DE EIXO VIÁRIO SOBRE ASFALTO COM TINTA RETRORREFLETIVA A BASE DE RESINA ACRÍLICA COM MICROESFERAS DE VIDRO, APLICAÇÃO MECÂNICA COM DEMARCADORA AUTOPROPELIDA - ESPESSURA DE 0,10 MM | D32: 102512 | E32: M | F32: 5100 | G32: =VLOOKUP(A32,CPU!$A$1:$N$4628,9) -> 5.55 | H32: =VLOOKUP(A32,CPU!$A$1:$N$4628,10) -> 6.78 | I32: 34578
A33: F | B33: 6 | C33: FORNECIMENTOS - MATERIAL ASFÁLTICO (BDI DIFERENCIADO) | I33: =SUM(I34:I36) -> 778593.36
A34: 19 | B34: 6.1 | C34: AQUISIÇÃO DE EMULSÃO ASFÁLTICA PARA IMPRIMAÇÃO (EAI) - EXCLUSIVE TRANSPORTE | D34: CPU.4 | E34: T | F34: 20 | G34: =VLOOKUP(A34,CPU!$A$1:$N$4628,9) -> 2769.65 | H34: =VLOOKUP(A34,CPU!$A$1:$N$4628,10) -> 3185.1 | I34: =ROUND(F34*H34,2) -> 63702
A35: 20 | B35: 6.2 | C35: AQUISIÇÃO DE EMULSAO ASFALTICA CATIONICA RR-1C - EXCLUSIVE TRANSPORTE | D35: CPU.5 | E35: T | F35: 6.4999982 | G35: =VLOOKUP(A35,CPU!$A$1:$N$4628,9) -> 2837.6 | H35: =VLOOKUP(A35,CPU!$A$1:$N$4628,10) -> 3263.24 | I35: =ROUND(F35*H35,2) -> 21211.05
A36: 21 | B36: 6.3 | C36: AQUISIÇÃO DE CONCRETO BETUMINOSO USINADO A QUENTE (CBUQ) PARA PAVIMENTACAO ASFALTICA, PADRAO DNIT, FAIXA C, COM CAP 50/70 - EXCLUSIVE TRANSPORTE | D36: CPU.6 | E36: T | F36: 1040.00046 | G36: =VLOOKUP(A36,CPU!$A$1:$N$4628,9) -> 580 | H36: =VLOOKUP(A36,CPU!$A$1:$N$4628,10) -> 667 | I36: =ROUND(F36*H36,2) -> 693680.31
B37: TOTAL GERAL DA OBRA COM BDI | I37: =SUM(I9,I15,I24,I30,I33,I27) -> 1608385.91

Sheet CPU
A1: 1 | B1: CODEVASF | E1: COMPOSIÇÃO DE PREÇO UNITÁRIO | I1: =H11 -> 11856.48 | J1: =H13 -> 14490.99 | K1: BDI CALCULADO: | M1: =ORÇAMENTO!I6 -> 0.2222
B2: OBRA: | C2: =ORÇAMENTO!C5 -> PAVIMENTAÇÃO ASFÁLTICA EM CBUQ – DIVERSOS LOGRADOUROS - ITEM 01 - (MORADA NOVA DE MINAS / MG) | G2: DATA: | H2: =ORÇAMENTO!C6 -> AGOSTO / 2023 | K2: BDI DIFERENCIADO: | M2: ='BDI FORN'!D31/100 -> 0.15
B3: SERVIÇO: | C3: =VLOOKUP(A1,ORÇAMENTO!A10:I31,3) -> MOBILIZAÇÃO E DESMOBILIZAÇÃO | E3: Referência: | F3: =VLOOKUP(A1,ORÇAMENTO!$A$10:$I$31,4) -> CPU.1 | G3: UNIDADE: | H3: =VLOOKUP(A1,ORÇAMENTO!A10:I31,5) -> GL
B5: TIPO ITEM | C5: CODIGO ITEM | D5: DESCRIÇÃO ITEM | E5: UNIDADE ITEM | F5: COEFICIENTE | G5: PRECO UNITARIO | H5: CUSTO TOTAL
B6: COMPOSICAO | C6: 89876 | D6: CAMINHÃO BASCULANTE 14 M3, COM CAVALO MECÂNICO DE CAPACIDADE MÁXIMA DE TRAÇÃO COMBINADO DE 36000 KG, POTÊNCIA 286 CV, INCLUSIVE SEMIREBOQUE COM CAÇAMBA METÁLICA | E6: CHP DIURNO. | F6: 8 | G6: 286.2 | H6: =ROUNDDOWN(F6*G6,2) -> 2289.6
B7: COMPOSICAO | C7: 89877 | D7: CAMINHÃO BASCULANTE 14 M3, COM CAVALO MECÂNICO DE CAPACIDADE MÁXIMA DE TRAÇÃO COMBINADO DE 36000 KG, POTÊNCIA 286 CV, INCLUSIVE SEMIREBOQUE COM CAÇAMBA METÁLICA | E7: CHI DIURNO. | F7: 8 | G7: 82.81 | H7: =ROUNDDOWN(F7*G7,2) -> 662.48
B8: COMPOSICAO | C8: 5914640 | D8: TRANSPORTE COM CAVALO MECÂNICO COM SEMIRREBOQUE COM CAPACIDADE DE 30 T - RODOVIA PAVIMENTADA | E8: T.KM | F8: 4112 | G8: 0.57 | H8: =ROUNDDOWN(F8*G8,2) -> 2343.84
B9: COMPOSIÇÃO | C9: 88316 | D9: SERVENTE COM ENCARGOS COMPLEMENTARES | E9: H | F9: 32 | G9: 19.76 | H9: =ROUNDDOWN(F9*G9,2) -> 632.32
B10: PRODUÇÃO DA EQUIPE | E10: 0.5 | F10: CUSTO | H10: =SUM(H6:H9) -> 5928.24
B11: TOTAL | H11: =H10/E10 -> 11856.48 | I11: OK
B12: BDI % | H12: =1+$M$1 -> 1.2222
B13: TOTAL DO SERVIÇO - R$ | H13: =ROUND(H11*H12,2) -> 14490.99
A15: 2 | B15: CODEVASF | E15: COMPOSIÇÃO DE PREÇO UNITÁRIO | I15: =H30 -> 69890.52 | J15: =H32 -> 85420.19
B16: OBRA: | C16: =$C$2 -> PAVIMENTAÇÃO ASFÁLTICA EM CBUQ – DIVERSOS LOGRADOUROS - ITEM 01 - (MORADA NOVA DE MINAS / MG) | G16: DATA: | H16: =$H$2 -> AGOSTO / 2023
B17: SERVIÇO: | C17: =VLOOKUP(A15,ORÇAMENTO!$A$10:$I$31,3) -> ADMINISTRAÇÃO LOCAL | E17: SINAPI | F17: =VLOOKUP(A15,ORÇAMENTO!$A$10:$I$31,4) -> CPU.2 | G17: UNIDADE: | H17: =VLOOKUP(A15,ORÇAMENTO!$A$10:$I$31,5) -> GL
B19: TIPO ITEM | C19: CODIGO ITEM | D19: DESCRIÇÃO ITEM | E19: UNIDADE ITEM | F19: COEFICIENTE | G19: PRECO UNITARIO | H19: CUSTO TOTAL
B20: INSUMO | C20: 14250 | D20: ENERGIA ELÉTRICA | E20: kwh | F20: =60 -> 60 | G20: 0.95 | H20: =ROUNDDOWN(F20*G20,2) -> 57
B21: INSUMO | C21: 44480 | D21: TARIFA "A" - ÁGUA/ESGOTO | E21: m³ | F21: =6 -> 6 | G21: 17.97 | H21: 107.82
B22: COTAÇÃO | C22: MERC. | D22: TELEFONE (PLANO CONTROLE) | E22: UNID | F22: 2 | G22: 59.9 | H22: 119.8
B23: INSUMO | C23: ED-50155 SEINFRA | D23: BANHEIRO QUÍMICO 110 X 120 X 230 CM COM MANUTENÇÃO (CONSIDERANDO OBRAS SIMULTÂNEAS) | E23: MÊS | F23: 2 | G23: 515 | H23: 1030
B24: COMPOSICAO | C24: 90777 | D24: Engenheiro Civil Júnior com encargos complementares | E24: H | F24: 30 | G24: 114.12 | H24: 3423.6
B25: COMPOSICAO | C25: 90776 | D25: Encarregado Geral com encargos complementares | E25: H | F25: 60 | G25: 57.73 | H25: 3463.8
B26: COMPOSICAO | C26: 88321 | D26: Tecnico de Laboratório com encargos complementares | E26: H | F26: 30 | G26: 45.45 | H26: 1363.5
B27: COMPOSICAO | C27: 100309 | D27: Tecnico em Segurança do Trabalho com encargos complementares | E27: H | F27: 30 | G27: 45.71 | H27: =ROUNDDOWN(F27*G27,2) -> 1371.3
B28: COMPOSICAO | C28: 90772 | D28: Auxiliar de escritório com encargos complementares | E28: H | F28: 30 | G28: 23.72 | H28: 711.6
B29: PRODUÇÃO DA EQUIPE | E29: =1/6 -> 0.1666666667 | F29: CUSTO | H29: =SUM(H20:H28) -> 11648.42
B30: TOTAL | H30: =ROUND(H29/E29,2) -> 69890.52 | I30: OK
B31: BDI % | H31: =1+$M$1 -> 1.2222
B32: TOTAL DO SERVIÇO - R$ | H32: =ROUND(H30*H31,2) -> 85420.19
A34: =A15+1 -> 3 | B34: CODEVASF | E34: COMPOSIÇÃO DE PREÇO UNITÁRIO | I34: =H44 -> 14356.5 | J34: =H46 -> 17546.51
B35: OBRA: | C35: =$C$2 -> PAVIMENTAÇÃO ASFÁLTICA EM CBUQ – DIVERSOS LOGRADOUROS - ITEM 01 - (MORADA NOVA DE MINAS / MG) | G35: DATA: | H35: =$H$2 -> AGOSTO / 2023
B36: SERVIÇO: | C36: =VLOOKUP(A34,ORÇAMENTO!$A$10:$I$31,3) -> CANTEIRO DE OBRAS | E36: SINAPI | F36: =VLOOKUP(A34,ORÇAMENTO!$A$10:$I$31,4) -> CPU.3 | G36: UNIDADE: | H36: =VLOOKUP(A34,ORÇAMENTO!$A$10:$I$31,5) -> GL
B38: TIPO ITEM | C38: CODIGO ITEM | D38: DESCRIÇÃO ITEM | E38: UNIDADE ITEM | F38: COEFICIENTE | G38: PRECO UNITARIO | H38: CUSTO TOTAL
B39: INSUMO | C39: 10775 | D39: ALUGUEL DE IMÓVEL OU CONTEINER QUE ATENDA AOS REQUISITOS MÍNIMOS PARA INSTALAÇÃO DO CANTEIRO DE OBRAS | E39: MÊS | F39: 6 | G39: 995,00 | H39: =ROUNDDOWN(F39*G39,2) -> 5970
B40: INSUMO | C40: 10779 | D40: LOCACAO DE CONTAINER 2,30 X 4,30 M, ALT. 2,50 M, P/ SANITARIO, C/ 5 BACIAS, 1 LAVATORIO E 4 MICTORIOS | E40: MÊS | F40: 6 | G40: 1234.75 | H40: =ROUNDDOWN(F40*G40,2) -> 7408.5
B41: INSUMO | C41: 37525 | D41: TELA PLASTICA TECIDA LISTRADA BRANCA E LARANJA, TIPO GUARDA CORPO, EM POLIETILENO MONOFILADO, ROLO 1,20 X 50 M (L X C) | E41: M | F41: 200 | G41: 3.69 | H41: =ROUNDDOWN(F41*G41,2) -> 738
B42: COMPOSICAO | C42: - | D42: PLACA DE SINALIZAÇÃO - "PERIGO - OBRAS A FRENTE" - FORNECIMENTO E MOVIMENTAÇÃO | E42: UNID. | F42: 12 | G42: 20 | H42: =ROUNDDOWN(F42*G42,2) -> 240
B43: PRODUÇÃO DA EQUIPE | E43: 1 | F43: CUSTO | H43: =SUM(H39:H42) -> 14356.5
B44: TOTAL | H44: =H43/E43 -> 14356.5 | I44: OK
B45: BDI % | H45: =1+$M$1 -> 1.2222
B46: TOTAL DO SERVIÇO - R$ | H46: =ROUND(H44*H45,2) -> 17546.51
A48: =A34+1 -> 4 | B48: CODEVASF | E48: COMPOSIÇÃO DE PREÇO UNITÁRIO | I48: =H62 -> 339.72 | J48: =H64 -> 415.21
B49: OBRA: | C49: =$C$2 -> PAVIMENTAÇÃO ASFÁLTICA EM CBUQ – DIVERSOS LOGRADOUROS - ITEM 01 - (MORADA NOVA DE MINAS / MG) | G49: DATA: | H49: =$H$2 -> AGOSTO / 2023
B50: SERVIÇO: | C50: =VLOOKUP(A48,ORÇAMENTO!$A$10:$I$31,3) -> PLACA DE OBRA EM CHAPA DE AÇO GALVANIZADO | E50: SINAPI | F50: =VLOOKUP(A48,ORÇAMENTO!$A$10:$I$31,4) -> 103689 | G50: UNIDADE: | H50: =VLOOKUP(A48,ORÇAMENTO!$A$10:$I$31,5) -> M2
B52: TIPO ITEM | C52: CODIGO ITEM | D52: DESCRIÇÃO ITEM | E52: UNIDADE ITEM | F52: COEFICIENTE | G52: PRECO UNITARIO | H52: CUSTO TOTAL
B53: INSUMO | C53: 4509 | D53: SARRAFO *2,5 X 10* CM EM PINUS, MISTA OU EQUIVALENTE DA REGIAO - BRUTA | E53: M | F53: 3,2083000 | G53: 4,41 | H53: =ROUNDDOWN(F53*G53,2) -> 14.14
B54: INSUMO | C54: 4813 | D54: PLACA DE OBRA (PARA CONSTRUCAO CIVIL) EM CHAPA GALVANIZADA *N. 22*, ADESIVADA, DE *2,4 X 1,2* M | E54: M2 | F54: 1,0000000 | G54: 250,00 | H54: 250
B55: INSUMO | C55: 4115 | D55: MADEIRA ROLICA TRATADA, D = 12 A 15 CM, EM EUCALIPTO OU EQUIVALENTE DA REGIAO | E55: M | F55: 2 | G55: 21.37 | H55: 42.74
B56: INSUMO | C56: 5065 | D56: PREGO DE ACO POLIDO COM CABECA 10 X 10 (7/8 X 17) | E56: KG | F56: 0,0113000 | G56: 36,57 | H56: 0.41
B57: INSUMO | C57: 5069 | D57: PREGO DE ACO POLIDO COM CABECA 17 X 27 (2 1/2 X 11) | E57: KG | F57: 0,0132000 | G57: 19.59 | H57: 0.25
B58: COMPOSICAO | C58: 88262 | D58: CARPINTEIRO DE FORMAS COM ENCARGOS COMPLEMENTARES | E58: H | F58: 0,3729000 | G58: 27,05 | H58: 10.08
B59: COMPOSICAO | C59: 88316 | D59: SERVENTE COM ENCARGOS COMPLEMENTARES | E59: H | F59: 1,1186000 | G59: 19,76 | H59: 22.1
H60: 0
B61: PRODUÇÃO DA EQUIPE | E61: 1 | F61: CUSTO | H61: =SUM(H53:H60) -> 339.72
B62: TOTAL | H62: =H61/E61 -> 339.72 | I62: OK
B63: BDI % | H63: =1+$M$1 -> 1.2222
B64: TOTAL DO SERVIÇO - R$ | H64: =ROUND(H62*H63,2) -> 415.21
A66: =A48+1 -> 5 | B66: CODEVASF | E66: COMPOSIÇÃO DE PREÇO UNITÁRIO | I66: =H78 -> 0.33 | J66: =H80 -> 0.4
B67: OBRA: | C67: =$C$2 -> PAVIMENTAÇÃO ASFÁLTICA EM CBUQ – DIVERSOS LOGRADOUROS - ITEM 01 - (MORADA NOVA DE MINAS / MG) | G67: DATA: | H67: =$H$2 -> AGOSTO / 2023
B68: SERVIÇO: | C68: =VLOOKUP(A66,ORÇAMENTO!$A$10:$I$31,3) -> SERVIÇOS TOPOGRÁFICOS PARA PAVIMENTAÇÃO, INCLUSIVE NOTA DE SERVIÇO, ACOMPANHAMENTO E GREIDE | E68: SINAPI | F68: =VLOOKUP(A66,ORÇAMENTO!$A$10:$I$31,4) -> 78472 | G68: UNIDADE: | H68: =VLOOKUP(A66,ORÇAMENTO!$A$10:$I$31,5) -> M2
B70: TIPO ITEM | C70: CODIGO ITEM | D70: DESCRIÇÃO ITEM | E70: UNIDADE ITEM | F70: COEFICIENTE | G70: PRECO UNITARIO | H70: CUSTO TOTAL
B71: COMPOSICAO | C71: 88253 | D71: AUXILIAR DE TOPÓGRAFO COM ENCARGOS COMPLEMENTARES | E71: H | F71: 0.0025 | G71: 21.57 | H71: =ROUNDDOWN(F71*G71,2) -> 0.05
B72: COMPOSICAO | C72: 88288 | D72: NIVELADOR COM ENCARGOS COMPLEMENTARES | E72: H | F72: 0.0025 | G72: 26.99 | H72: 0.06
B73: COMPOSICAO | C73: 88316 | D73: SERVENTE COM ENCARGOS COMPLEMENTARES | E73: H | F73: 0.0075 | G73: 19.76 | H73: 0.14
B74: COMPOSICAO | C74: 88597 | D74: DESENHISTA DETALHISTA COM ENCARGOS COMPLEMENTARES | E74: H | F74: 0.002 | G74: 29.72 | H74: 0.05
B75: COMPOSICAO | C75: 92145 | D75: CAMINHONETE CABINE SIMPLES COM MOTOR 1.6 FLEX, CÂMBIO MANUAL, POTÊNCIA 101/104 CV, 2 PORTAS | E75: CHP | F75: 0.0005 | G75: 72.79 | H75: 0.03
H76: 0
B77: PRODUÇÃO DA EQUIPE | E77: 1 | F77: CUSTO | H77: =SUM(H71:H76) -> 0.33
B78: TOTAL | H78: =H77/E77 -> 0.33 | I78: OK
B79: BDI % | H79: =1+$M$1 -> 1.2222
B80: TOTAL DO SERVIÇO - R$ | H80: =ROUND(H78*H79,2) -> 0.4
A82: =A66+1 -> 6 | B82: CODEVASF | E82: COMPOSIÇÃO DE PREÇO UNITÁRIO | I82: =H91 -> 2.03 | J82: =H93 -> 2.48
B83: OBRA: | C83: =$C$2 -> PAVIMENTAÇÃO ASFÁLTICA EM CBUQ – DIVERSOS LOGRADOUROS - ITEM 01 - (MORADA NOVA DE MINAS / MG) | G83: DATA: | H83: =$H$2 -> AGOSTO / 2023
B84: SERVIÇO: | C84: =VLOOKUP(A82,ORÇAMENTO!$A$10:$I$31,3) -> ESCAVAÇÃO HORIZONTAL EM SOLO DE 1A CATEGORIA | E84: SINAPI | F84: =VLOOKUP(A82,ORÇAMENTO!$A$10:$I$31,4) -> 101116 | G84: UNIDADE: | H84: =VLOOKUP(A82,ORÇAMENTO!$A$10:$I$31,5) -> M3
B86: TIPO ITEM | C86: CODIGO ITEM | D86: DESCRIÇÃO ITEM | E86: UNIDADE ITEM | F86: COEFICIENTE | G86: PRECO UNITARIO | H86: CUSTO TOTAL
B87: COMPOSICAO | C87: 5847 | D87: TRATOR DE ESTEIRAS, POTÊNCIA 170 HP, PESO OPERACIONAL 19 T, CAÇAMBA 5,2 M3 | E87: CHP | F87: 0,0048000 | G87: 231.82 | H87: =ROUNDDOWN(F87*G87,2) -> 1.11
B88: COMPOSICAO | C88: 5849 | D88: TRATOR DE ESTEIRAS, POTÊNCIA 170 HP, PESO OPERACIONAL 19 T, CAÇAMBA 5,2 M3 | E88: CHI | F88: 0,0082000 | G88: 82.14 | H88: =ROUNDDOWN(F88*G88,2) -> 0.67
B89: COMPOSICAO | C89: 88316 | D89: SERVENTE COM ENCARGOS COMPLEMENTARES | E89: H | F89: 0,0131000 | G89: 19,76 | H89: =ROUNDDOWN(F89*G89,2) -> 0.25
B90: PRODUÇÃO DA EQUIPE | E90: 1 | F90: CUSTO | H90: =SUM(H87:H89) -> 2.03
B91: TOTAL | H91: =H90/E90 -> 2.03 | I91: OK
B92: BDI % | H92: =1+$M$1 -> 1.2222
B93: TOTAL DO SERVIÇO - R$ | H93: =ROUND(H91*H92,2) -> 2.48
A95: 7 | B95: CODEVASF | E95: COMPOSIÇÃO DE PREÇO UNITÁRIO | I95: =H105 -> 7.99 | J95: =H107 -> 9.77
B96: OBRA: | C96: =$C$2 -> PAVIMENTAÇÃO ASFÁLTICA EM CBUQ – DIVERSOS LOGRADOUROS - ITEM 01 - (MORADA NOVA DE MINAS / MG) | G96: DATA: | H96: =$H$2 -> AGOSTO / 2023
B97: SERVIÇO: | C97: =VLOOKUP(A95,ORÇAMENTO!$A$10:$I$31,3) -> CARGA, MANOBRA E DESCARGA DE SOLOS E MATERIAIS GRANULARES EM CAMINHÃO BASCULANTE | E97: SINAPI | F97: =VLOOKUP(A95,ORÇAMENTO!$A$10:$I$31,4) -> 100976 | G97: UNIDADE: | H97: =VLOOKUP(A95,ORÇAMENTO!$A$10:$I$31,5) -> M3
B99: TIPO ITEM | C99: CODIGO ITEM | D99: DESCRIÇÃO ITEM | E99: UNIDADE ITEM | F99: COEFICIENTE | G99: PRECO UNITARIO | H99: CUSTO TOTAL
B100: COMPOSICAO | C100: 5940 | D100: PÁ CARREGADEIRA SOBRE RODAS, POTÊNCIA LÍQUIDA 128 HP, CAPACIDADE DA CAÇAMBA 1,7 A 2,8 M3, PESO OPERACIONAL 11632 KG | E100: CHP | F100: 0,0083000 | G100: 205,93 | H100: =ROUNDDOWN(F100*G100,2) -> 1.7
B101: COMPOSICAO | C101: 5942 | D101: PÁ CARREGADEIRA SOBRE RODAS, POTÊNCIA LÍQUIDA 128 HP, CAPACIDADE DA CAÇAMBA 1,7 A 2,8 M3, PESO OPERACIONAL 11632 KG | E101: CHI | F101: 0,0074000 | G101: 90,02 | H101: =ROUNDDOWN(F101*G101,2) -> 0.66
B102: COMPOSICAO | C102: 89883 | D102: CAMINHÃO BASCULANTE 18 M3, COM CAVALO MECÂNICO DE CAPACIDADE MÁXIMA DE TRAÇÃO COMBINADO DE 45000 KG, POTÊNCIA 330 CV, INCLUSIVE SEMIREBOQUE COM CAÇAMBA METÁLICA | E102: CHP | F102: 0,0153000 | G102: 314,64 | H102: =ROUNDDOWN(F102*G102,2) -> 4.81
B103: COMPOSICAO | C103: 89884 | D103: CAMINHÃO BASCULANTE 18 M3, COM CAVALO MECÂNICO DE CAPACIDADE MÁXIMA DE TRAÇÃO COMBINADO DE 45000 KG, POTÊNCIA 330 CV, INCLUSIVE SEMIREBOQUE COM CAÇAMBA METÁLICA | E103: CHI | F103: 0,0095000 | G103: 86,36 | H103: =ROUNDDOWN(F103*G103,2) -> 0.82
B104: PRODUÇÃO DA EQUIPE | E104: 1 | F104: CUSTO | H104: =SUM(H100:H103) -> 7.99
B105: TOTAL | H105: =H104/E104 -> 7.99 | I105: OK
B106: BDI % | H106: =1+$M$1 -> 1.2222
B107: TOTAL DO SERVIÇO - R$ | H107: =ROUND(H105*H106,2) -> 9.77
A109: 8 | B109: CODEVASF | E109: COMPOSIÇÃO DE PREÇO UNITÁRIO | I109: =H123 -> 1.13 | J109: =H125 -> 1.38
B110: OBRA: | C110: =$C$2 -> PAVIMENTAÇÃO ASFÁLTICA EM CBUQ – DIVERSOS LOGRADOUROS - ITEM 01 - (MORADA NOVA DE MINAS / MG) | G110: DATA: | H110: =$H$2 -> AGOSTO / 2023
B111: SERVIÇO: | C111: =VLOOKUP(A109,ORÇAMENTO!$A$10:$I$31,3) -> REGULARIZAÇÃO E COMPACTAÇÃO DO SUBLEITO | E111: SICRO | F111: =VLOOKUP(A109,ORÇAMENTO!$A$10:$I$31,4) -> 100577 | G111: UNIDADE: | H111: M2
B113: TIPO ITEM | C113: CODIGO ITEM | D113: DESCRIÇÃO ITEM | E113: UNIDADE ITEM | F113: COEFICIENTE | G113: PRECO UNITARIO | H113: CUSTO TOTAL
B114: COMPOSICAO | C114: 5901 | D114: CAMINHÃO PIPA 10.000 L TRUCADO, PESO BRUTO TOTAL 23.000 KG, CARGA ÚTIL MÁXIMA 15.935 KG, DISTÂNCIA ENTRE EIXOS 4,8 M, POTÊNCIA 230 CV, INCLUSIVE TANQUE DE AÇO PARA TRANSPORTE DE ÁGUA | E114: CHP | F114: 0,0010000 | G114: 264,71 | H114: =ROUNDDOWN(F114*G114,2) -> 0.26
B115: COMPOSICAO | C115: 5903 | D115: CAMINHÃO PIPA 10.000 L TRUCADO, PESO BRUTO TOTAL 23.000 KG, CARGA ÚTIL MÁXIMA 15.935 KG, DISTÂNCIA ENTRE EIXOS 4,8 M, POTÊNCIA 230 CV, INCLUSIVE TANQUE DE AÇO PARA TRANSPORTE DE ÁGUA | E115: CHI | F115: 0,0020000 | G115: 67,26 | H115: 0.13
B116: COMPOSICAO | C116: 5932 | D116: MOTONIVELADORA POTÊNCIA BÁSICA LÍQUIDA (PRIMEIRA MARCHA) 125 HP, PESO BRUTO 13032 KG, LARGURA DA LÂMINA DE 3,7 M | E116: CHP | F116: 0,0001000 | G116: 244,89 | H116: 0.02
B117: COMPOSICAO | C117: 5934 | D117: MOTONIVELADORA POTÊNCIA BÁSICA LÍQUIDA (PRIMEIRA MARCHA) 125 HP, PESO BRUTO 13032 KG, LARGURA DA LÂMINA DE 3,7 M | E117: CHI | F117: 0,0030000 | G117: 101,62 | H117: 0.3
B118: COMPOSICAO | C118: 88316 | D118: SERVENTE COM ENCARGOS COMPLEMENTARES | E118: H | F118: 0,0030000 | G118: 19,76 | H118: 0.05
B119: COMPOSICAO | C119: 96463 | D119: ROLO COMPACTADOR DE PNEUS, ESTATICO, PRESSAO VARIAVEL, POTENCIA 110 HP, PESO SEM/COM LASTRO 10,8/27 T, LARGURA DE ROLAGEM 2,30 M | E119: CHP | F119: 0,0010000 | G119: 203,13 | H119: 0.2
B120: COMPOSICAO | C120: 96464 | D120: ROLO COMPACTADOR DE PNEUS, ESTATICO, PRESSAO VARIAVEL, POTENCIA 110 HP, PESO SEM/COM LASTRO 10,8/27 T, LARGURA DE ROLAGEM 2,30 M | E120: CHI | F120: 0,0020000 | G120: 89,07 | H120: 0.17
B122: PRODUÇÃO DA EQUIPE | E122: 1 | F122: CUSTO | H122: =SUM(H114:H121) -> 1.13
B123: TOTAL | H123: =H122/E122 -> 1.13 | I123: OK
B124: BDI % | H124: =1+$M$1 -> 1.2222
B125: TOTAL DO SERVIÇO - R$ | H125: =ROUND(H123*H124,2) -> 1.38
A127: 9 | B127: CODEVASF | E127: COMPOSIÇÃO DE PREÇO UNITÁRIO | I127: =H142 -> 12.99 | J127: =H144 -> 15.88
B128: OBRA: | C128: =$C$2 -> PAVIMENTAÇÃO ASFÁLTICA EM CBUQ – DIVERSOS LOGRADOUROS - ITEM 01 - (MORADA NOVA DE MINAS / MG) | G128: DATA: | H128: =$H$2 -> AGOSTO / 2023
B129: SERVIÇO: | C129: =VLOOKUP(A127,ORÇAMENTO!$A$10:$I$31,3) -> EXECUÇÃO E COMPACTAÇÃO DE BASE E OU SUB BASE PARA PAVIMENTAÇÃO EM CASCALHO - EXCLUSIVE SOLO, ESCAVAÇÃO, CARGA E TRANSPORTE. | E129: SINAPI | F129: =VLOOKUP(A127,ORÇAMENTO!$A$10:$I$31,4) -> 96388 | G129: UNIDADE: | H129: =VLOOKUP(A127,ORÇAMENTO!$A$10:$I$31,5) -> M3
B131: TIPO ITEM | C131: CODIGO ITEM | D131: DESCRIÇÃO ITEM | E131: UNIDADE ITEM | F131: COEFICIENTE | G131: PRECO UNITARIO | H131: CUSTO TOTAL
B132: COMPOSICAO | C132: 5684 | D132: ROLO COMPACTADOR VIBRATÓRIO DE UM CILINDRO AÇO LISO, POTÊNCIA 80 HP, PESO OPERACIONAL MÁXIMO 8,1 T, IMPACTO DINÂMICO 16,15 / 9,5 T, LARGURA DE TRABALHO 1,68 M | E132: CHP | F132: 0,0090000 | G132: 148,46 | H132: =ROUNDDOWN(F132*G132,2) -> 1.33
B133: COMPOSICAO | C133: 5685 | D133: ROLO COMPACTADOR VIBRATÓRIO DE UM CILINDRO AÇO LISO, POTÊNCIA 80 HP, PESO OPERACIONAL MÁXIMO 8,1 T, IMPACTO DINÂMICO 16,15 / 9,5 T, LARGURA DE TRABALHO 1,68 M | E133: CHI | F133: 0,0210000 | G133: 65,46 | H133: 1.37
B134: COMPOSICAO | C134: 5901 | D134: CAMINHÃO PIPA 10.000 L TRUCADO, PESO BRUTO TOTAL 23.000 KG, CARGA ÚTIL MÁXIMA 15.935 KG, DISTÂNCIA ENTRE EIXOS 4,8 M, POTÊNCIA 230 CV, INCLUSIVE TANQUE DE AÇO PARA TRANSPORTE DE ÁGUA | E134: CHP | F134: 0,0020000 | G134: 264,71 | H134: =ROUNDDOWN(F134*G134,2) -> 0.52
B135: COMPOSICAO | C135: 5903 | D135: CAMINHÃO PIPA 10.000 L TRUCADO, PESO BRUTO TOTAL 23.000 KG, CARGA ÚTIL MÁXIMA 15.935 KG, DISTÂNCIA ENTRE EIXOS 4,8 M, POTÊNCIA 230 CV, INCLUSIVE TANQUE DE AÇO PARA TRANSPORTE DE ÁGUA | E135: CHI | F135: 0,0280000 | G135: 67,26 | H135: 1.88
B136: COMPOSICAO | C136: 5932 | D136: MOTONIVELADORA POTÊNCIA BÁSICA LÍQUIDA (PRIMEIRA MARCHA) 125 HP, PESO BRUTO 13032 KG, LARGURA DA LÂMINA DE 3,7 M | E136: CHP | F136: 0,0080000 | G136: 244,89 | H136: 1.95
B137: COMPOSICAO | C137: 5934 | D137: MOTONIVELADORA POTÊNCIA BÁSICA LÍQUIDA (PRIMEIRA MARCHA) 125 HP, PESO BRUTO 13032 KG, LARGURA DA LÂMINA DE 3,7 M | E137: CHI | F137: 0,0220000 | G137: 101,62 | H137: 2.23
B138: COMPOSICAO | C138: 88316 | D138: SERVENTE COM ENCARGOS COMPLEMENTARES | E138: H | F138: 0,0300000 | G138: 19,76 | H138: 0.59
B139: COMPOSICAO | C139: 96463 | D139: ROLO COMPACTADOR DE PNEUS, ESTATICO, PRESSAO VARIAVEL, POTENCIA 110 HP, PESO SEM/COM LASTRO 10,8/27 T, LARGURA DE ROLAGEM 2,30 M | E139: CHP | F139: 0,0040000 | G139: 203,13 | H139: 0.81
B140: COMPOSICAO | C140: 96464 | D140: ROLO COMPACTADOR DE PNEUS, ESTATICO, PRESSAO VARIAVEL, POTENCIA 110 HP, PESO SEM/COM LASTRO 10,8/27 T, LARGURA DE ROLAGEM 2,30 M | E140: CHI | F140: 0,0260000 | G140: 89,07 | H140: 2.31
B141: PRODUÇÃO DA EQUIPE | E141: 1 | F141: CUSTO | H141: =SUM(H132:H140) -> 12.99
B142: TOTAL | H142: =H141/E141 -> 12.99 | I142: OK
B143: BDI % | H143: =1+$M$1 -> 1.2222
B144: TOTAL DO SERVIÇO - R$ | H144: =ROUND(H142*H143,2) -> 15.88
A146: 10 | B146: CODEVASF | E146: COMPOSIÇÃO DE PREÇO UNITÁRIO | I146: =H161 -> 1.12 | J146: =H163 -> 1.37
B147: OBRA: | C147: =$C$2 -> PAVIMENTAÇÃO ASFÁLTICA EM CBUQ – DIVERSOS LOGRADOUROS - ITEM 01 - (MORADA NOVA DE MINAS / MG) | G147: DATA: | H147: =$H$2 -> AGOSTO / 2023
B148: SERVIÇO: | C148: =VLOOKUP(A146,ORÇAMENTO!$A$10:$I$31,3) -> IMPRIMAÇÃO COM EMULSÃO ASFÁLTICA (EAI) | E148: SINAPI | F148: =VLOOKUP(A146,ORÇAMENTO!$A$10:$I$31,4) -> 96401 | G148: UNIDADE: | H148: =VLOOKUP(A146,ORÇAMENTO!$A$10:$I$31,5) -> M2
B150: TIPO ITEM | C150: CODIGO ITEM | D150: DESCRIÇÃO ITEM | E150: UNIDADE ITEM | F150: COEFICIENTE | G150: PRECO UNITARIO | H150: CUSTO TOTAL
B151: COMPOSICAO | C151: 5839 | D151: VASSOURA MECÂNICA REBOCÁVEL COM ESCOVA CILÍNDRICA, LARGURA ÚTIL DE VARRIMENTO DE 2,44 M | E151: CHP | F151: 0,0020000 | G151: 9.77 | H151: =ROUNDDOWN(F151*G151,2) -> 0.01
B152: COMPOSICAO | C152: 5841 | D152: VASSOURA MECÂNICA REBOCÁVEL COM ESCOVA CILÍNDRICA, LARGURA ÚTIL DE VARRIMENTO DE 2,44 M | E152: CHI | F152: 0,0040000 | G152: 4.65 | H152: 0.01
B153: INSUMO | C153: ANP | D153: EMULSÃO ASFÁLTICA PARA IMPRIMAÇÃO - EAI (FORNECIMENTO COM BDI DIFERENCIADO) | E153: T | F153: =1.3/1000 -> 0.0013 | H153: 0
B154: COMPOSICAO | C154: 83362 | D154: ESPARGIDOR DE ASFALTO PRESSURIZADO, TANQUE 6 M3 COM ISOLAÇÃO TÉRMICA, AQUECIDO COM 2 MAÇARICOS, COM BARRA ESPARGIDORA 3,60 M, MONTADO SOBRE CAMINHÃO TOCO, PBT 14.300 KG, POTÊNCIA 185 CV | E154: CHP | F154: 0,0010000 | G154: 232.92 | H154: 0.23
B155: COMPOSICAO | C155: 88316 | D155: SERVENTE COM ENCARGOS COMPLEMENTARES | E155: H | F155: 0,0060000 | G155: 19.76 | H155: 0.11
B156: COMPOSICAO | C156: 89035 | D156: TRATOR DE PNEUS, POTÊNCIA 85 CV, TRAÇÃO 4X4, PESO COM LASTRO DE 4.675 KG | E156: CHP | F156: 0,0020000 | G156: 119.96 | H156: 0.23
B157: COMPOSICAO | C157: 89036 | D157: TRATOR DE PNEUS, POTÊNCIA 85 CV, TRAÇÃO 4X4, PESO COM LASTRO DE 4.675 KG | E157: CHI | F157: 0,0040000 | G157: 52.19 | H157: 0.2
B158: COMPOSICAO | C158: 91486 | D158: ESPARGIDOR DE ASFALTO PRESSURIZADO, TANQUE 6 M3 COM ISOLAÇÃO TÉRMICA, AQUECIDO COM 2 MAÇARICOS, COM BARRA ESPARGIDORA 3,60 M, MONTADO SOBRE CAMINHÃO TOCO, PBT 14.300 KG, POTÊNCIA 185 CV | E158: CHI | F158: 0,0050000 | G158: 66.18 | H158: 0.33
H159: 0
B160: PRODUÇÃO DA EQUIPE | E160: 1 | F160: CUSTO | H160: =SUM(H151:H159) -> 1.12
B161: TOTAL | H161: =H160/E160 -> 1.12 | I161: OK
B162: BDI % | H162: =1+$M$1 -> 1.2222
B163: TOTAL DO SERVIÇO - R$ | H163: =ROUND(H161*H162,2) -> 1.37
A165: 11 | B165: CODEVASF | E165: COMPOSIÇÃO DE PREÇO UNITÁRIO | I165: =H180 -> 0.93 | J165: =H182 -> 1.14
B166: OBRA: | C166: =$C$2 -> PAVIMENTAÇÃO ASFÁLTICA EM CBUQ – DIVERSOS LOGRADOUROS - ITEM 01 - (MORADA NOVA DE MINAS / MG) | G166: DATA: | H166: =$H$2 -> AGOSTO / 2023
B167: SERVIÇO: | C167: =VLOOKUP(A165,ORÇAMENTO!$A$10:$I$31,3) -> PINTURA DE LIGAÇÃO COM EMULSÃO ASFÁLTICA RR-1C | E167: SINAPI | F167: =VLOOKUP(A165,ORÇAMENTO!$A$10:$I$31,4) -> 96402 | G167: UNIDADE: | H167: M2
B169: TIPO ITEM | C169: CODIGO ITEM | D169: DESCRIÇÃO ITEM | E169: UNIDADE ITEM | F169: COEFICIENTE | G169: PRECO UNITARIO | H169: CUSTO TOTAL
B170: COMPOSICAO | C170: 5839 | D170: VASSOURA MECÂNICA REBOCÁVEL COM ESCOVA CILÍNDRICA, LARGURA ÚTIL DE VARRIMENTO DE 2,44 M | E170: CHP | F170: 0,0020000 | G170: 9.77 | H170: =ROUNDDOWN(F170*G170,2) -> 0.01
B171: COMPOSICAO | C171: 5841 | D171: VASSOURA MECÂNICA REBOCÁVEL COM ESCOVA CILÍNDRICA, LARGURA ÚTIL DE VARRIMENTO DE 2,44 M | E171: CHI | F171: 0,0040000 | G171: 4.65 | H171: 0.01
B172: INSUMO | C172: 41903 | D172: EMULSAO ASFALTICA CATIONICA RR-1C PARA USO EM PAVIMENTACAO ASFALTICA (FORNECIMENTO COM BDI DIFERENCIADO) | E172: KG | F172: 0,4500000 | H172: 0
B173: COMPOSICAO | C173: 83362 | D173: ESPARGIDOR DE ASFALTO PRESSURIZADO, TANQUE 6 M3 COM ISOLAÇÃO TÉRMICA, AQUECIDO COM 2 MAÇARICOS, COM BARRA ESPARGIDORA 3,60 M, MONTADO SOBRE CAMINHÃO TOCO, PBT 14.300 KG, POTÊNCIA 185 CV | E173: CHP | F173: 0,0004000 | G173: 232.92 | H173: 0.09
B174: COMPOSICAO | C174: 88316 | D174: SERVENTE COM ENCARGOS COMPLEMENTARES | E174: H | F174: 0,0055000 | G174: 19.76 | H174: 0.1
B175: COMPOSICAO | C175: 89035 | D175: TRATOR DE PNEUS, POTÊNCIA 85 CV, TRAÇÃO 4X4, PESO COM LASTRO DE 4.675 KG | E175: CHP | F175: 0,0017000 | G175: 119.96 | H175: 0.2
B176: COMPOSICAO | C176: 89036 | D176: TRATOR DE PNEUS, POTÊNCIA 85 CV, TRAÇÃO 4X4, PESO COM LASTRO DE 4.675 KG | E176: CHI | F176: 0,0038000 | G176: 52.19 | H176: 0.19
B177: COMPOSICAO | C177: 91486 | D177: ESPARGIDOR DE ASFALTO PRESSURIZADO, TANQUE 6 M3 COM ISOLAÇÃO TÉRMICA, AQUECIDO COM 2 MAÇARICOS, COM BARRA ESPARGIDORA 3,60 M, MONTADO SOBRE CAMINHÃO TOCO, PBT 14.300 KG, POTÊNCIA 185 CV | E177: CHI | F177: 0,0051000 | G177: 66.18 | H177: 0.33
H178: 0
B179: PRODUÇÃO DA EQUIPE | E179: 1 | F179: CUSTO | H179: =SUM(H170:H178) -> 0.93
B180: TOTAL | H180: =H179/E179 -> 0.93 | I180: OK
B181: BDI % | H181: =1+$M$1 -> 1.2222
B182: TOTAL DO SERVIÇO - R$ | H182: =ROUND(H180*H181,2) -> 1.14
A184: 12 | B184: CODEVASF | E184: COMPOSIÇÃO DE PREÇO UNITÁRIO | I184: =H202 -> 121.32 | J184: =H204 -> 148.28
B185: OBRA: | C185: =$C$2 -> PAVIMENTAÇÃO ASFÁLTICA EM CBUQ – DIVERSOS LOGRADOUROS - ITEM 01 - (MORADA NOVA DE MINAS / MG) | G185: DATA: | H185: =$H$2 -> AGOSTO / 2023
B186: SERVIÇO: | C186: =VLOOKUP(A184,ORÇAMENTO!$A$10:$I$31,3) -> EXECUÇÃO DE PAVIMENTO COM APLICAÇÃO DE CONCRETO ASFÁLTICO USINADO A QUENTE (CBUQ), CAMADA DE ROLAMENTO - EXCLUSIVE TRANSPORTE | E186: SINAPI | F186: =VLOOKUP(A184,ORÇAMENTO!$A$10:$I$31,4) -> 95995 | G186: UNIDADE: | H186: =VLOOKUP(A184,ORÇAMENTO!$A$10:$I$31,5) -> M3
B188: TIPO ITEM | C188: CODIGO ITEM | D188: DESCRIÇÃO ITEM | E188: UNIDADE ITEM | F188: COEFICIENTE | G188: PRECO UNITARIO | H188: CUSTO TOTAL
B189: INSUMO | C189: 1518 | D189: CONCRETO BETUMINOSO USINADO A QUENTE (CBUQ) PARA PAVIMENTACAO ASFALTICA, PADRAO DNIT, FAIXA C, COM CAP 50/70 - AQUISICAO POSTO USINA | E189: T | F189: 2,5548000 | H189: =ROUNDDOWN(F189*G189,2) -> 0
B190: COMPOSICAO | C190: 5835 | D190: VIBROACABADORA DE ASFALTO SOBRE ESTEIRAS, LARGURA DE PAVIMENTAÇÃO 1,90 M A 5,30 M, POTÊNCIA 105 HP CAPACIDADE 450 T/H | E190: CHP | F190: 0,0464000 | G190: 366,49 | H190: 17
B191: COMPOSICAO | C191: 5837 | D191: VIBROACABADORA DE ASFALTO SOBRE ESTEIRAS, LARGURA DE PAVIMENTAÇÃO 1,90 M A 5,30 M, POTÊNCIA 105 HP CAPACIDADE 450 T/H | E191: CHI | F191: 0,0949000 | G191: 147,82 | H191: 14.02
B192: COMPOSICAO | C192: 88314 | D192: RASTELEIRO COM ENCARGOS COMPLEMENTARES | E192: H | F192: 1,1301000 | G192: 26,52 | H192: 29.97
B193: COMPOSICAO | C193: 91386 | D193: CAMINHÃO BASCULANTE 10 M3, TRUCADO CABINE SIMPLES, PESO BRUTO TOTAL 23.000 KG, CARGA ÚTIL MÁXIMA 15.935 KG, DISTÂNCIA ENTRE EIXOS 4,80 M, POTÊNCIA 230 CV INCLUSIVE CAÇAMBA METÁLICA | E193: CHP | F193: 0,0464000 | G193: 228,50 | H193: 10.6
B194: COMPOSICAO | C194: 95631 | D194: ROLO COMPACTADOR VIBRATORIO TANDEM, ACO LISO, POTENCIA 125 HP, PESO SEM/COM LASTRO 10,20/11,65 T, LARGURA DE TRABALHO 1,73 M | E194: CHP | F194: 0,0805000 | G194: 210,29 | H194: 16.92
B195: COMPOSICAO | C195: 95632 | D195: ROLO COMPACTADOR VIBRATORIO TANDEM, ACO LISO, POTENCIA 125 HP, PESO SEM/COM LASTRO 10,20/11,65 T, LARGURA DE TRABALHO 1,73 M | E195: CHI | F195: 0,0607000 | G195: 83,23 | H195: 5.05
B196: COMPOSICAO | C196: 96155 | D196: TRATOR DE PNEUS COM POTÊNCIA DE 85 CV, TRAÇÃO 4X4, COM VASSOURA MECÂNICA ACOPLADA | E196: CHI | F196: 0,1071000 | G196: 56,63 | H196: 6.06
B197: COMPOSICAO | C197: 96157 | D197: TRATOR DE PNEUS COM POTÊNCIA DE 85 CV, TRAÇÃO 4X4, COM VASSOURA MECÂNICA ACOPLADA | E197: CHP | F197: 0,0341000 | G197: 128,67 | H197: 4.38
B198: COMPOSICAO | C198: 96463 | D198: ROLO COMPACTADOR DE PNEUS, ESTATICO, PRESSAO VARIAVEL, POTENCIA 110 HP, PESO SEM/COM LASTRO 10,8/27 T, LARGURA DE ROLAGEM 2,30 M | E198: CHP | F198: 0,0419000 | G198: 203,13 | H198: 8.51
B199: COMPOSICAO | C199: 96464 | D199: ROLO COMPACTADOR DE PNEUS, ESTATICO, PRESSAO VARIAVEL, POTENCIA 110 HP, PESO SEM/COM LASTRO 10,8/27 T, LARGURA DE ROLAGEM 2,30 M | E199: CHI | F199: 0,0990000 | G199: 89,07 | H199: 8.81
H200: 0
B201: PRODUÇÃO DA EQUIPE | E201: 1 | F201: CUSTO | H201: =SUM(H189:H200) -> 121.32
B202: TOTAL | H202: =H201/E201 -> 121.32 | I202: OK
B203: BDI % | H203: =1+$M$1 -> 1.2222
B204: TOTAL DO SERVIÇO - R$ | H204: =ROUND(H202*H203,2) -> 148.28
A206: 13 | B206: CODEVASF | E206: COMPOSIÇÃO DE PREÇO UNITÁRIO | I206: =H215 -> 1.61 | J206: =H217 -> 1.97
B207: OBRA: | C207: =$C$2 -> PAVIMENTAÇÃO ASFÁLTICA EM CBUQ – DIVERSOS LOGRADOUROS - ITEM 01 - (MORADA NOVA DE MINAS / MG) | G207: DATA: | H207: =$H$2 -> AGOSTO / 2023
B208: SERVIÇO: | C208: =VLOOKUP(A206,ORÇAMENTO!$A$10:$I$31,3) -> TRANSPORTE COM CAMINHÃO BASCULANTE, EM VIA URBANA PAVIMENTADA | E208: SINAPI | F208: =VLOOKUP(A206,ORÇAMENTO!$A$10:$I$31,4) -> 95877 | G208: UNIDADE: | H208: =VLOOKUP(A206,ORÇAMENTO!$A$10:$I$31,5) -> M3XKM
B210: TIPO ITEM | C210: CODIGO ITEM | D210: DESCRIÇÃO ITEM | E210: UNIDADE ITEM | F210: COEFICIENTE | G210: PRECO UNITARIO | H210: CUSTO TOTAL
B211: COMPOSICAO | C211: 89883 | D211: CAMINHÃO BASCULANTE 18 M3, COM CAVALO MECÂNICO DE CAPACIDADE MÁXIMA DE TRAÇÃO COMBINADO DE 45000 KG, POTÊNCIA 330 CV, INCLUSIVE SEMIREBOQUE COM CAÇAMBA METÁLICA | E211: CHP | F211: 0,0046000 | G211: 314.64 | H211: =ROUNDDOWN(F211*G211,2) -> 1.44
B212: COMPOSICAO | C212: 89884 | D212: CAMINHÃO BASCULANTE 18 M3, COM CAVALO MECÂNICO DE CAPACIDADE MÁXIMA DE TRAÇÃO COMBINADO DE 45000 KG, POTÊNCIA 330 CV, INCLUSIVE SEMIREBOQUE COM CAÇAMBA METÁLICA | E212: CHI | F212: 0,0020000 | G212: 86,36 | H212: =ROUNDDOWN(F212*G212,2) -> 0.17
H213: =ROUNDDOWN(F213*G213,2) -> 0
B214: PRODUÇÃO DA EQUIPE | E214: 1 | F214: CUSTO | H214: =SUM(H211:H213) -> 1.61
B215: TOTAL | H215: =H214/E214 -> 1.61 | I215: OK
B216: BDI % | H216: =1+$M$1 -> 1.2222
B217: TOTAL DO SERVIÇO - R$ | H217: =ROUND(H215*H216,2) -> 1.97
A219: 14 | B219: CODEVASF | E219: COMPOSIÇÃO DE PREÇO UNITÁRIO | I219: =H228 -> 1.92 | J219: =H230 -> 2.35
B220: OBRA: | C220: =$C$2 -> PAVIMENTAÇÃO ASFÁLTICA EM CBUQ – DIVERSOS LOGRADOUROS - ITEM 01 - (MORADA NOVA DE MINAS / MG) | G220: DATA: | H220: =$H$2 -> AGOSTO / 2023
B221: SERVIÇO: | C221: =VLOOKUP(A219,ORÇAMENTO!$A$10:$I$31,3) -> TRANSPORTE COM CAMINHÃO CARROCERIA 9T, EM VIA URBANA PAVIMENTADA | E221: SINAPI | F221: =VLOOKUP(A219,ORÇAMENTO!$A$10:$I$31,4) -> 100947 | G221: UNIDADE: | H221: =VLOOKUP(A219,ORÇAMENTO!$A$10:$I$31,5) -> TXKM
B223: TIPO ITEM | C223: CODIGO ITEM | D223: DESCRIÇÃO ITEM | E223: UNIDADE ITEM | F223: COEFICIENTE | G223: PRECO UNITARIO | H223: CUSTO TOTAL
B224: COMPOSICAO | C224: 5824 | D224: CAMINHÃO TOCO, PBT 16.000 KG, CARGA ÚTIL MÁX. 10.685 KG, DIST. ENTRE EIXOS 4,8 M, POTÊNCIA 189 CV, INCLUSIVE CARROCERIA FIXA ABERTA DE MADEIRA P/ TRANSPORTE GERAL DE CARGA SECA, DIMEN. APROX. 2,5 X 7,00 X 0,50 M | E224: CHP | F224: 0,0093000 | G224: 183.71 | H224: =ROUNDDOWN(F224*G224,2) -> 1.7
B225: COMPOSICAO | C225: 5826 | D225: CAMINHÃO TOCO, PBT 16.000 KG, CARGA ÚTIL MÁX. 10.685 KG, DIST. ENTRE EIXOS 4,8 M, POTÊNCIA 189 CV, INCLUSIVE CARROCERIA FIXA ABERTA DE MADEIRA P/ TRANSPORTE GERAL DE CARGA SECA, DIMEN. APROX. 2,5 X 7,00 X 0,50 M | E225: CHI | F225: 0,0040000 | G225: 57 | H225: =ROUNDDOWN(F225*G225,2) -> 0.22
H226: =ROUNDDOWN(F226*G226,2) -> 0
B227: PRODUÇÃO DA EQUIPE | E227: 1 | F227: CUSTO | H227: =SUM(H224:H226) -> 1.92
B228: TOTAL | H228: =H227/E227 -> 1.92 | I228: OK
... 83 more rows

Sheet BDI SERV
B1: DETALHAMENTO DO BDI - SERVIÇOS
B4: Item | C4: Descrição dos Serviços | D4: % | E4: %
D5: PV | E5: CD
B7: 1 | C7: ADMINISTRAÇÃO CENTRAL | E7: 4.01
B8: 1.1 | C8: ESCRITÓRIO CENTRAL
B9: 1.2 | C9: VIAGENS
B10: 1.3 | C10: OUTROS
B12: 2 | C12: IMPOSTOS E TAXAS | D12: =SUM(D13:D16) -> 6.65 | E12: =SUM(E13:E16) -> 8.31
B13: 2.1 | C13: ISS (*) | D13: 3 | E13: =ROUND(D13*1.2515,2) -> 3.75
B14: 2.2 | C14: PIS | D14: 0.65 | E14: =ROUND(D14*1.2515,2) -> 0.81
B15: 2.3 | C15: Cofins | D15: 3 | E15: =ROUND(D15*1.2515,2) -> 3.75
B16: 2.4 | C16: CONTRIBUIÇÃO PREVIDENCIÁRIA SOBRE A RENDA BRUTA | D16: 0 | E16: =ROUND(D16*1.2515,2) -> 0
B18: 3 | C18: TAXA DE RISCO | E18: =SUM(E19:E22) -> 0.96
B19: 3.1 | C19: SEGURO | E19: 0.2
B20: 3.2 | C20: RISCO | E20: 0.56
B21: 3.3 | C21: GARANTIA | E21: 0.2
T22: =1/0.82 -> 1.219512195
B23: 4 | C23: DESPESAS FINANCEIRAS | E23: 1.11
B25: 5 | C25: LUCRO | E25: 7.5
C27: BDI - CALCULADO | E27: =ROUND((((1+(E7+E18)/100)*(1+E23/100)*(1+E25/100)/(1-D12/100)-1)*100),2) -> 22.22
A29: BDI = ((1+((AC+S+R+G)/100))x(1+DF/100)x(1+L/100)/(1-I/100)-1)*100
B31: BDI (CALCULADO): | D31: =ROUND((((1+((E7+E18)/100))*(1+E23/100)*(1+E25/100))/(1-D12/100)-1)*100,2) -> 22.22 | E31: %
A33: (*) ISS CONFORME LEI 2.226/2017 e LEI COMPLEMENTAR Nº 116/2003 - Considerando as deduções previstas no Art. 106 - § 5º (Alíquota sobre 50% do valor dos serviços)
A37: BDI EM CONFORMIDADE COM OS ACÓRDÃOS Nº 2369/2011 e ACÓRDÃO Nº 2.622/2013 - TCU - PLENÁRIO

Sheet BDI FORN
B1: DETALHAMENTO DO BDI - FORNECIMENTO (MATERIAL ASFÁLTICO)
B4: Item | C4: Descrição dos Serviços | D4: % | E4: %
D5: PV | E5: CD
B7: 1 | C7: ADMINISTRAÇÃO CENTRAL | E7: 3.72
B8: 1.1 | C8: ESCRITÓRIO CENTRAL
B9: 1.2 | C9: VIAGENS
B10: 1.3 | C10: OUTROS
B12: 2 | C12: IMPOSTOS E TAXAS | D12: =SUM(D13:D16) -> 3.65 | E12: =SUM(E13:E16) -> 4.56
B13: 2.1 | C13: ISS (*) | E13: =ROUND(D13*1.2515,2) -> 0
B14: 2.2 | C14: PIS | D14: 0.65 | E14: =ROUND(D14*1.2515,2) -> 0.81
B15: 2.3 | C15: Cofins | D15: 3 | E15: =ROUND(D15*1.2515,2) -> 3.75
B16: 2.4 | C16: CONTRIBUIÇÃO PREVIDENCIÁRIA SOBRE A RENDA BRUTA | D16: 0 | E16: =ROUND(D16*1.2515,2) -> 0
B18: 3 | C18: TAXA DE RISCO | E18: =SUM(E19:E22) -> 0.82
B19: 3.1 | C19: SEGURO | E19: 0.16
B20: 3.2 | C20: RISCO | E20: 0.5
B21: 3.3 | C21: GARANTIA | E21: 0.16
B23: 4 | C23: DESPESAS FINANCEIRAS | E23: 0.94
B25: 5 | C25: LUCRO | E25: 5
C27: BDI - CALCULADO | E27: =ROUND((((1+(E7+E18)/100)*(1+E23/100)*(1+E25/100)/(1-D12/100)-1)*100),2) -> 15
A29: BDI = ((1+((AC+S+R+G)/100))x(1+DF/100)x(1+L/100)/(1-I/100)-1)*100
B31: BDI (CALCULADO): | D31: =ROUND((((1+((E7+E18)/100))*(1+E23/100)*(1+E25/100))/(1-D12/100)-1)*100,2) -> 15 | E31: %
A37: BDI EM CONFORMIDADE COM OS ACÓRDÃOS Nº 2369/2011 e ACÓRDÃO Nº 2.622/2013 - TCU - PLENÁRIO

Sheet CRONOGRAMA
B2: CRONOGRAMA FÍSICO-FINANCEIRO
B3: OBRA: | C3: =ORÇAMENTO!C5 -> PAVIMENTAÇÃO ASFÁLTICA EM CBUQ – DIVERSOS LOGRADOUROS - ITEM 01 - (MORADA NOVA DE MINAS / MG) | F3: VALOR: | G3: =ORÇAMENTO!I37 -> 1608385.91
F4: PRAZO: | G4: 180 DIAS
B6: ITEM | C6: ETAPAS/DESCRIÇAO | D6: FISICO/ FINANCEIRO | E6: TOTAL ETAPAS | F6: MÊS 1 | G6: MÊS 2 | H6: MÊS 3 | I6: MÊS 4 | J6: MÊS 5 | K6: MÊS 6 | L6: TOTAL
A7: A | B7: =VLOOKUP(A7,ORÇAMENTO!$A$9:$I$37,2) -> 1 | C7: =VLOOKUP(A7,ORÇAMENTO!$A$9:$I$37,3) -> SERVIÇOS PRELIMINARES | D7: FISICO | E7: =ROUND(E8/$G$3,4) -> 0.0761 | F7: 0.25 | G7: 0.15 | H7: 0.15 | I7: 0.15 | J7: 0.1 | K7: 0.2 | L7: =SUM(F7:K7) -> 1
D8: FINANCEIRO | E8: =ORÇAMENTO!I9 -> 122348.95 | F8: =ROUND($E$8*F7,2) -> 30587.24 | G8: 18352.34 | H8: 18352.34 | I8: 18352.34 | J8: 12234.9 | K8: 24469.79 | L8: =SUM(F8:K8) -> 122348.95
A9: B | B9: =VLOOKUP(A9,ORÇAMENTO!$A$9:$I$37,2) -> 2 | C9: =VLOOKUP(A9,ORÇAMENTO!$A$9:$I$37,3) -> PAVIMENTAÇÃO | D9: FISICO | E9: =ROUND(E10/$G$3,4) -> 0.1273 | F9: 0.2 | G9: 0.25 | H9: 0.2 | I9: 0.2 | J9: 0.15 | L9: =SUM(F9:K9) -> 1
D10: FINANCEIRO | E10: =ORÇAMENTO!I15 -> 204736.59 | F10: =ROUND($E$10*F9,2) -> 40947.32 | G10: 51184.15 | H10: 40947.32 | I10: 40947.32 | J10: 30710.49 | K10: 0 | L10: =SUM(F10:K10) -> 204736.6
A11: C | B11: =VLOOKUP(A11,ORÇAMENTO!$A$9:$I$37,2) -> 3 | C11: =VLOOKUP(A11,ORÇAMENTO!$A$9:$I$37,3) -> TRANSPORTE DE MATERIAIS | D11: FISICO | E11: =ROUND(E12/$G$3,4) -> 0.0808 | F11: 0.15 | G11: 0.25 | H11: 0.2 | I11: 0.15 | J11: 0.1 | K11: 0.15 | L11: =SUM(F11:K11) -> 1
D12: FINANCEIRO | E12: =ORÇAMENTO!I24 -> 129975.01 | F12: =ROUND($E$12*F11,2) -> 19496.25 | G12: 32493.75 | H12: 25995 | I12: 19496.25 | J12: 12997.5 | K12: 19496.25 | L12: =SUM(F12:K12)-0.04 -> 129974.96
A13: D | B13: =VLOOKUP(A13,ORÇAMENTO!$A$9:$I$37,2) -> 4 | C13: =VLOOKUP(A13,ORÇAMENTO!$A$9:$I$37,3) -> TRANSPORTE DE MATERIAL ASFÁLTICO (BDI DIFERENCIADO) | D13: FISICO | E13: =ROUND(E14/$G$3,4) -> 0.0865 | G13: 0.1 | H13: 0.25 | I13: 0.35 | J13: 0.3 | L13: =SUM(F13:K13) -> 1
D14: FINANCEIRO | E14: =ORÇAMENTO!I27 -> 139050 | F14: =ROUND($E$14*F13,2) -> 0 | G14: 13905 | H14: 34762.5 | I14: 48667.5 | J14: 41715 | K14: 0 | L14: =SUM(F14:K14)-0.02 -> 139049.98
A15: E | B15: =VLOOKUP(A15,ORÇAMENTO!$A$9:$I$37,2) -> 5 | C15: =VLOOKUP(A15,ORÇAMENTO!$A$9:$I$37,3) -> OBRAS COMPLEMENTARES | D15: FISICO | E15: =ROUND(E16/$G$3,4) -> 0.1453 | I15: 0.15 | J15: 0.45 | K15: 0.4 | L15: =SUM(F15:K15) -> 1
D16: FINANCEIRO | E16: =ORÇAMENTO!I30 -> 233682 | F16: =ROUND($E$16*F15,2) -> 0 | G16: 0 | H16: 0 | I16: 35052.3 | J16: 105156.9 | K16: 93472.8 | L16: =SUM(F16:K16)-0.02 -> 233681.98
A17: F | B17: =VLOOKUP(A17,ORÇAMENTO!$A$9:$I$37,2) -> 6 | C17: =VLOOKUP(A17,ORÇAMENTO!$A$9:$I$37,3) -> FORNECIMENTOS - MATERIAL ASFÁLTICO (BDI DIFERENCIADO) | D17: FISICO | E17: =ROUND(E18/$G$3,4) -> 0.4841 | G17: 0.1 | H17: 0.25 | I17: 0.35 | J17: 0.3 | L17: =SUM(F17:K17) -> 1
D18: FINANCEIRO | E18: =ORÇAMENTO!I33 -> 778593.36 | F18: =ROUND($E$18*F17,2) -> 0 | G18: 77859.34 | H18: 194648.34 | I18: 272507.68 | J18: 233578.01 | K18: 0 | L18: =SUM(F18:K18)-0.02 -> 778593.35
B19: TOTAL | D19: FISICO | E19: =SUM(F19:K19) -> 1.000000006 | F19: =F20/$E$20 -> 0.05659761717 | G19: 0.1204901005 | H19: 0.1956654171 | I19: 0.2704720225 | J19: 0.2713234413 | K19: 0.08545140762 | L19: =SUM(F19:K19) -> 1.000000006
D20: FINANCEIRO | E20: =E12+E10+E8+E14+E18+E16 -> 1608385.91 | F20: 91030.81 | G20: 193794.58 | H20: 314705.5 | I20: 435023.39 | J20: 436392.8 | K20: 137438.84 | L20: =SUM(F20:K20)-0.01 -> 1608385.91
B22: OBSERVAÇÕES:
